[Event "Live Chess"]
[Site "Chess.com"]
[Date "2024.06.02"]
[Round "-"]
[White "McFim"]
[Black "GEMdzq"]
[Result "1-0"]
[WhiteElo "1799"]
[BlackElo "2269"]
[TimeControl "300"]
[EndTime "8:14:16 PDT"]
[Termination "McFim won by checkmate"]

1. e4 {[%clk 0:04:56.4]} 1... Nf6 {[%clk 0:04:56.5]} 2. e5 {[%clk 0:04:53.7]}
2... Nd5 {[%clk 0:04:55.3]} 3. d4 {[%clk 0:04:53.3]} 3... d6 {[%clk 0:04:54.4]}
4. Nf3 {[%clk 0:04:52.7]} 4... g6 {[%clk 0:04:53]} 5. Be2 {[%clk 0:04:50.7]}
5... Bg7 {[%clk 0:04:52.5]} 6. exd6 {[%clk 0:04:46.9]} 6... cxd6 {[%clk
0:04:50.7]} 7. O-O {[%clk 0:04:46.2]} 7... O-O {[%clk 0:04:49.5]} 8. h3 {[%clk
0:04:44.7]} 8... Nc6 {[%clk 0:04:46.3]} 9. c3 {[%clk 0:04:43.6]} 9... Bf5 {[%clk
0:04:44]} 10. Nbd2 {[%clk 0:04:41.4]} 10... e5 {[%clk 0:04:39.6]} 11. dxe5
{[%clk 0:04:39.7]} 11... dxe5 {[%clk 0:04:39.2]} 12. Nb3 {[%clk 0:04:11]} 12...
Nf4 {[%clk 0:03:58.3]} 13. Bxf4 {[%clk 0:03:55]} 13... exf4 {[%clk 0:03:58.2]}
14. Qxd8 {[%clk 0:03:48]} 14... Raxd8 {[%clk 0:03:57.7]} 15. Rad1 {[%clk
0:03:46.1]} 15... Bc2 {[%clk 0:03:55.7]} 16. Rd2 {[%clk 0:03:39.4]} 16... Rxd2
{[%clk 0:03:52.2]} 17. Nfxd2 {[%clk 0:03:37.6]} 17... Re8 {[%clk 0:03:49]} 18.
Bf3 {[%clk 0:03:35]} 18... a5 {[%clk 0:03:19.4]} 19. Rc1 {[%clk 0:03:31.8]}
19... Bd3 {[%clk 0:03:06]} 20. Nc5 {[%clk 0:03:27]} 20... Be2 {[%clk 0:03:02.3]}
21. Re1 {[%clk 0:03:17.2]} 21... Re5 {[%clk 0:02:49.1]} 22. Nxb7 {[%clk
0:03:10]} 22... Bxf3 {[%clk 0:02:45.1]} 23. Nxf3 {[%clk 0:03:05.3]} 23... Rxe1+
{[%clk 0:02:24]} 24. Nxe1 {[%clk 0:03:03.4]} 24... Kf8 {[%clk 0:02:22.7]} 25.
Nd3 {[%clk 0:02:51.2]} 25... f3 {[%clk 0:02:19]} 26. gxf3 {[%clk 0:02:48.8]}
26... a4 {[%clk 0:02:15.8]} 27. Nd6 {[%clk 0:02:37.6]} 27... a3 {[%clk
0:02:09.4]} 28. Nb5 {[%clk 0:02:33.9]} 28... axb2 {[%clk 0:02:07.7]} 29. Nxb2
{[%clk 0:02:32.5]} 29... Ke7 {[%clk 0:02:06.8]} 30. f4 {[%clk 0:02:19.7]} 30...
Ke6 {[%clk 0:02:03.4]} 31. Kg2 {[%clk 0:02:16.8]} 31... Kd5 {[%clk 0:02:02.5]}
32. Kf3 {[%clk 0:02:14.4]} 32... Kc5 {[%clk 0:02:01.4]} 33. a4 {[%clk
0:02:12.3]} 33... f5 {[%clk 0:01:49.6]} 34. Ke3 {[%clk 0:02:08.8]} 34... Bh6
{[%clk 0:01:43.9]} 35. Nd4 {[%clk 0:01:37.5]} 35... Na5 {[%clk 0:01:29.9]} 36.
Ne6+ {[%clk 0:01:31.9]} 36... Kd6 {[%clk 0:01:26.3]} 37. Ng5 {[%clk 0:01:30.5]}
37... Bg7 {[%clk 0:01:23.2]} 38. Kd3 {[%clk 0:01:22.6]} 38... h6 {[%clk
0:01:22]} 39. Nf3 {[%clk 0:01:21]} 39... Kc5 {[%clk 0:01:18.6]} 40. Ne5 {[%clk
0:01:18.2]} 40... g5 {[%clk 0:01:16.6]} 41. Nf7 {[%clk 0:01:09.2]} 41... gxf4
{[%clk 0:01:11.5]} 42. Nd8 {[%clk 0:01:03]} 42... Kd6 {[%clk 0:01:06.3]} 43.
Nc4+ {[%clk 0:00:59]} 43... Nxc4 {[%clk 0:01:04.8]} 44. Kxc4 {[%clk 0:00:58.9]}
44... Kd7 {[%clk 0:01:02.2]} 45. Nb7 {[%clk 0:00:56.9]} 45... Kc7 {[%clk
0:01:01.5]} 46. Nc5 {[%clk 0:00:55.2]} 46... Be5 {[%clk 0:00:57.6]} 47. f3
{[%clk 0:00:51.6]} 47... Kc6 {[%clk 0:00:53.8]} 48. Nb3 {[%clk 0:00:46.2]} 48...
Bf6 {[%clk 0:00:45.9]} 49. Nd4+ {[%clk 0:00:44]} 49... Kb6 {[%clk 0:00:43.5]}
50. Nxf5 {[%clk 0:00:41.8]} 50... Ka5 {[%clk 0:00:42.8]} 51. Kb3 {[%clk
0:00:40.5]} 51... Be5 {[%clk 0:00:39.9]} 52. Nxh6 {[%clk 0:00:39.1]} 52... Bg7
{[%clk 0:00:35.9]} 53. Nf5 {[%clk 0:00:37.5]} 53... Bf6 {[%clk 0:00:35.1]} 54.
h4 {[%clk 0:00:36.7]} 54... Kb6 {[%clk 0:00:32.2]} 55. h5 {[%clk 0:00:35.8]}
55... Kc5 {[%clk 0:00:31.6]} 56. h6 {[%clk 0:00:34.7]} 56... Kd5 {[%clk
0:00:30.8]} 57. h7 {[%clk 0:00:32.9]} 57... Ke5 {[%clk 0:00:29.8]} 58. Nd4
{[%clk 0:00:31.3]} 58... Kd6 {[%clk 0:00:26.3]} 59. Ne2 {[%clk 0:00:30.1]} 59...
Ke7 {[%clk 0:00:25.3]} 60. Nxf4 {[%clk 0:00:28.9]} 60... Kf7 {[%clk 0:00:25.2]}
61. Nd5 {[%clk 0:00:26.4]} 61... Kg7 {[%clk 0:00:24.9]} 62. Nxf6 {[%clk
0:00:25.1]} 62... Kh8 {[%clk 0:00:22.9]} 63. Ne4 {[%clk 0:00:23.1]} 63... Kg7
{[%clk 0:00:22.8]} 64. a5 {[%clk 0:00:22.4]} 64... Kxh7 {[%clk 0:00:22.7]} 65.
a6 {[%clk 0:00:21.4]} 65... Kg6 {[%clk 0:00:22.6]} 66. a7 {[%clk 0:00:20.4]}
66... Kf5 {[%clk 0:00:22.5]} 67. a8=Q {[%clk 0:00:17.7]} 67... Kf4 {[%clk
0:00:22.4]} 68. Nc5 {[%clk 0:00:16]} 68... Ke3 {[%clk 0:00:21.6]} 69. Qd8 {[%clk
0:00:14.9]} 69... Kf2 {[%clk 0:00:21.3]} 70. f4 {[%clk 0:00:13.7]} 70... Kg3
{[%clk 0:00:21.2]} 71. f5 {[%clk 0:00:13.4]} 71... Kf4 {[%clk 0:00:20.8]} 72. f6
{[%clk 0:00:12.4]} 72... Ke3 {[%clk 0:00:20.7]} 73. f7 {[%clk 0:00:11.7]} 73...
Ke2 {[%clk 0:00:20.2]} 74. f8=Q {[%clk 0:00:10.4]} 74... Ke1 {[%clk 0:00:20.1]}
75. Qfe7+ {[%clk 0:00:09.8]} 75... Kf2 {[%clk 0:00:19.4]} 76. Qdf8+ {[%clk
0:00:09.7]} 76... Kg2 {[%clk 0:00:18.9]} 77. Qeg7+ {[%clk 0:00:09.6]} 77... Kh1
{[%clk 0:00:18.7]} 78. Qfh8# {[%clk 0:00:08.9]} 1-0

[Event "Live Chess"]
[Site "Chess.com"]
[Date "2024.06.02"]
[Round "-"]
[White "CarmelJane"]
[Black "ProfPoisson"]
[Result "1-0"]
[WhiteElo "2047"]
[BlackElo "1352"]
[TimeControl "300"]
[EndTime "8:14:21 PDT"]
[Termination "CarmelJane won on time"]

1. e4 {[%clk 0:04:58.1]} 1... e5 {[%clk 0:04:38.9]} 2. Nf3 {[%clk 0:04:56]} 2...
Nf6 {[%clk 0:04:31.4]} 3. Nc3 {[%clk 0:04:42.3]} 3... Nc6 {[%clk 0:04:28.7]} 4.
d3 {[%clk 0:04:37]} 4... d5 {[%clk 0:04:19.8]} 5. exd5 {[%clk 0:04:31.7]} 5...
Nxd5 {[%clk 0:04:18.2]} 6. Nxd5 {[%clk 0:04:30.4]} 6... Qxd5 {[%clk 0:04:15.9]}
7. Be2 {[%clk 0:04:20.1]} 7... Be6 {[%clk 0:04:04.8]} 8. O-O {[%clk 0:04:17.6]}
8... O-O-O {[%clk 0:04:03.3]} 9. Be3 {[%clk 0:04:13.4]} 9... f6 {[%clk
0:03:58.5]} 10. Nd2 {[%clk 0:04:11.7]} 10... g5 {[%clk 0:03:56.7]} 11. Bf3
{[%clk 0:03:48.1]} 11... Qd7 {[%clk 0:03:50.1]} 12. Ne4 {[%clk 0:03:38.6]} 12...
Be7 {[%clk 0:03:39.5]} 13. Bc5 {[%clk 0:03:17.6]} 13... f5 {[%clk 0:03:30]} 14.
Bxe7 {[%clk 0:03:14.1]} 14... Qxe7 {[%clk 0:03:25.2]} 15. Nc3 {[%clk 0:03:08]}
15... g4 {[%clk 0:03:22.8]} 16. Bxc6 {[%clk 0:03:06.2]} 16... bxc6 {[%clk
0:03:18.2]} 17. Qe2 {[%clk 0:03:03]} 17... f4 {[%clk 0:03:07.2]} 18. Qxe5 {[%clk
0:02:55.8]} 18... h5 {[%clk 0:02:37]} 19. Rfe1 {[%clk 0:02:52.3]} 19... Rh6
{[%clk 0:02:26.2]} 20. Ne4 {[%clk 0:02:49.2]} 20... f3 {[%clk 0:02:19]} 21. Ng5
{[%clk 0:02:25.4]} 21... Rd5 {[%clk 0:01:58.8]} 22. Qe3 {[%clk 0:01:42.4]} 22...
fxg2 {[%clk 0:01:49.8]} 23. Ne4 {[%clk 0:01:28.6]} 23... Rg6 {[%clk 0:01:29]}
24. Qxa7 {[%clk 0:01:26.4]} 24... g3 {[%clk 0:01:15.4]} 25. fxg3 {[%clk
0:01:09.5]} 25... Qg7 {[%clk 0:00:32.8]} 26. Qf2 {[%clk 0:01:04.3]} 26... Bf5
{[%clk 0:00:26.9]} 27. Qxg2 {[%clk 0:01:02.8]} 27... Bxe4 {[%clk 0:00:25.2]} 28.
dxe4 {[%clk 0:01:02.7]} 28... Re5 {[%clk 0:00:20.5]} 29. Re3 {[%clk 0:00:54]}
29... h4 {[%clk 0:00:20]} 30. Rf1 {[%clk 0:00:41.1]} 30... h3 {[%clk 0:00:17.1]}
31. Qf3 {[%clk 0:00:38.8]} 31... Reg5 {[%clk 0:00:14]} 32. Qf8+ {[%clk
0:00:38.1]} 32... Qxf8 {[%clk 0:00:10.3]} 33. Rxf8+ {[%clk 0:00:38]} 33... Kb7
{[%clk 0:00:08.2]} 34. Rb3+ {[%clk 0:00:36.6]} 34... Ka7 {[%clk 0:00:04.2]} 35.
Kf2 {[%clk 0:00:33]} 1-0

[Event "Live Chess"]
[Site "Chess.com"]
[Date "2024.06.02"]
[Round "-"]
[White "YrrriKharkiv"]
[Black "upoe610"]
[Result "1-0"]
[WhiteElo "2155"]
[BlackElo "2158"]
[TimeControl "300"]
[EndTime "8:14:37 PDT"]
[Termination "YrrriKharkiv won by checkmate"]

1. d4 {[%clk 0:04:49.3]} 1... Nf6 {[%clk 0:04:58.6]} 2. Nc3 {[%clk 0:04:48.4]}
2... d5 {[%clk 0:04:57.5]} 3. Bf4 {[%clk 0:04:46.5]} 3... c5 {[%clk 0:04:51.1]}
4. e3 {[%clk 0:04:43.9]} 4... e6 {[%clk 0:04:49]} 5. Nf3 {[%clk 0:04:39.5]} 5...
a6 {[%clk 0:04:47]} 6. a4 {[%clk 0:04:37.4]} 6... Nc6 {[%clk 0:04:45.4]} 7. Be2
{[%clk 0:04:32.5]} 7... Bd6 {[%clk 0:04:43.4]} 8. Bg3 {[%clk 0:04:29.9]} 8... c4
{[%clk 0:04:40.8]} 9. Bh4 {[%clk 0:04:27.3]} 9... Rb8 {[%clk 0:04:38.4]} 10. e4
{[%clk 0:04:25.6]} 10... Bb4 {[%clk 0:04:33.3]} 11. e5 {[%clk 0:04:20.9]} 11...
Bxc3+ {[%clk 0:04:23.4]} 12. bxc3 {[%clk 0:04:19.1]} 12... Qa5 {[%clk 0:04:23]}
13. exf6 {[%clk 0:04:16.9]} 13... Qxc3+ {[%clk 0:04:21.7]} 14. Kf1 {[%clk
0:04:15.8]} 14... g6 {[%clk 0:04:19.8]} 15. Bg3 {[%clk 0:04:06.8]} 15... Ra8
{[%clk 0:04:15.7]} 16. Bd6 {[%clk 0:04:03.6]} 16... Kd7 {[%clk 0:04:05.9]} 17.
Bc5 {[%clk 0:03:59.8]} 17... b6 {[%clk 0:04:03.5]} 18. Bxb6 {[%clk 0:03:54.4]}
18... Rb8 {[%clk 0:04:01.2]} 19. Bc5 {[%clk 0:03:53.8]} 19... Rb2 {[%clk
0:03:59.5]} 20. Ne1 {[%clk 0:03:37.6]} 20... h5 {[%clk 0:03:51.4]} 21. Rb1
{[%clk 0:03:36]} 21... h4 {[%clk 0:03:45.1]} 22. Rxb2 {[%clk 0:03:34.4]} 22...
Qxb2 {[%clk 0:03:44.1]} 23. h3 {[%clk 0:03:28.9]} 23... Nb4 {[%clk 0:03:31.9]}
24. f3 {[%clk 0:02:55.9]} 24... Na2 {[%clk 0:03:28.7]} 25. a5 {[%clk 0:02:47.4]}
25... Nc3 {[%clk 0:03:25.3]} 26. Qd2 {[%clk 0:02:46.9]} 26... Nb1 {[%clk
0:03:19.2]} 27. Qf4 {[%clk 0:02:45.3]} 27... Kc6 {[%clk 0:03:13.7]} 28. Qd6+
{[%clk 0:02:41.1]} 28... Kb7 {[%clk 0:03:12.9]} 29. Qb6+ {[%clk 0:02:37]} 29...
Qxb6 {[%clk 0:03:10.8]} 30. Bxb6 {[%clk 0:02:36]} 30... Nc3 {[%clk 0:03:08.7]}
31. f4 {[%clk 0:02:28.4]} 31... Bd7 {[%clk 0:03:02.9]} 32. Nf3 {[%clk
0:02:27.7]} 32... Bb5 {[%clk 0:03:01.2]} 33. Kf2 {[%clk 0:02:25.2]} 33... Ne4+
{[%clk 0:02:59.6]} 34. Ke3 {[%clk 0:02:22.1]} 34... Ng3 {[%clk 0:02:55]} 35. Rb1
{[%clk 0:02:14.8]} 35... Nf5+ {[%clk 0:02:51.9]} 36. Kf2 {[%clk 0:02:13.9]}
36... Ng3 {[%clk 0:02:51]} 37. Nd2 {[%clk 0:02:03.9]} 37... Nxe2 {[%clk
0:02:46.9]} 38. Kxe2 {[%clk 0:02:03.6]} 38... c3+ {[%clk 0:02:46.4]} 39. Ke3
{[%clk 0:02:03.2]} 39... cxd2 {[%clk 0:02:45.6]} 40. Kxd2 {[%clk 0:02:02.9]}
40... Rc8 {[%clk 0:02:43.1]} 41. Bc5 {[%clk 0:02:01.5]} 41... Kc6 {[%clk
0:02:41.6]} 42. Ke3 {[%clk 0:01:52.1]} 42... Rg8 {[%clk 0:02:40.3]} 43. g3
{[%clk 0:01:48.7]} 43... hxg3 {[%clk 0:02:36.2]} 44. Rg1 {[%clk 0:01:47]} 44...
g5 {[%clk 0:02:33.7]} 45. Rxg3 {[%clk 0:01:45.7]} 45... gxf4+ {[%clk 0:02:32.9]}
46. Kxf4 {[%clk 0:01:45.4]} 46... Rxg3 {[%clk 0:02:27.3]} 47. Kxg3 {[%clk
0:01:44.2]} 47... Be2 {[%clk 0:02:27.2]} 48. Kf4 {[%clk 0:01:37.3]} 48... Bh5
{[%clk 0:02:25.3]} 49. c3 {[%clk 0:01:34.2]} 49... Kb5 {[%clk 0:02:22]} 50. Ke5
{[%clk 0:01:32.3]} 50... Kc4 {[%clk 0:02:20.3]} 51. Bb4 {[%clk 0:01:31.3]} 51...
Kd3 {[%clk 0:02:19.2]} 52. h4 {[%clk 0:01:29.6]} 52... Ke3 {[%clk 0:02:17.6]}
53. Kd6 {[%clk 0:01:29.3]} 53... Ke4 {[%clk 0:02:17]} 54. Kc7 {[%clk 0:01:25.6]}
54... Kf5 {[%clk 0:02:15.9]} 55. Kb6 {[%clk 0:01:25.1]} 55... Be2 {[%clk
0:02:14.9]} 56. Kc7 {[%clk 0:01:22.5]} 56... Kxf6 {[%clk 0:02:13.4]} 57. Kd6
{[%clk 0:01:17.6]} 57... Kg6 {[%clk 0:02:11.3]} 58. Ke7 {[%clk 0:01:15]} 58...
f5 {[%clk 0:02:02.6]} 59. Bd6 {[%clk 0:01:10.4]} 59... Bg4 {[%clk 0:01:57.8]}
60. Bf4 {[%clk 0:01:06.7]} 60... Kh5 {[%clk 0:01:51.7]} 61. Bg3 {[%clk
0:01:04.9]} 61... Bh3 {[%clk 0:01:45.8]} 62. Bf4 {[%clk 0:00:50.3]} 62... Kg4
{[%clk 0:01:42.2]} 63. Bd2 {[%clk 0:00:47.2]} 63... f4 {[%clk 0:01:41.2]} 64.
Kxe6 {[%clk 0:00:46.7]} 64... f3 {[%clk 0:01:40.6]} 65. Be3 {[%clk 0:00:45.8]}
65... Kxh4+ {[%clk 0:01:32.8]} 66. Kxd5 {[%clk 0:00:45.2]} 66... Kg3 {[%clk
0:01:32.4]} 67. Kc5 {[%clk 0:00:42.2]} 67... Bf1 {[%clk 0:01:30.2]} 68. c4
{[%clk 0:00:40.3]} 68... f2 {[%clk 0:01:28.9]} 69. d5 {[%clk 0:00:37.7]} 69...
Bh3 {[%clk 0:01:26]} 70. Bxf2+ {[%clk 0:00:32.8]} 70... Kxf2 {[%clk 0:01:25.1]}
71. Kd6 {[%clk 0:00:32.2]} 71... Ke3 {[%clk 0:01:23.9]} 72. c5 {[%clk
0:00:31.9]} 72... Kd4 {[%clk 0:01:23.2]} 73. c6 {[%clk 0:00:29.3]} 73... Kc4
{[%clk 0:01:22.5]} 74. c7 {[%clk 0:00:24.3]} 74... Kb5 {[%clk 0:01:19.2]} 75.
Ke7 {[%clk 0:00:20.3]} 75... Bc8 {[%clk 0:01:15.4]} 76. Kd8 {[%clk 0:00:15.2]}
76... Bb7 {[%clk 0:01:08.3]} 77. c8=Q {[%clk 0:00:12]} 77... Bxc8 {[%clk
0:01:07.1]} 78. Kxc8 {[%clk 0:00:11.7]} 78... Kxa5 {[%clk 0:01:07]} 79. d6
{[%clk 0:00:10.2]} 79... Kb4 {[%clk 0:01:06.9]} 80. d7 {[%clk 0:00:09.8]} 80...
a5 {[%clk 0:01:06.8]} 81. d8=Q {[%clk 0:00:09.2]} 81... a4 {[%clk 0:01:06.7]}
82. Qd1 {[%clk 0:00:07.9]} 82... a3 {[%clk 0:01:05]} 83. Qa1 {[%clk 0:00:07.5]}
83... Kb3 {[%clk 0:01:04.5]} 84. Kb7 {[%clk 0:00:07.1]} 84... a2 {[%clk
0:01:03.6]} 85. Kb6 {[%clk 0:00:06.8]} 85... Ka3 {[%clk 0:01:03.5]} 86. Kb5
{[%clk 0:00:06.2]} 86... Kb3 {[%clk 0:01:02.6]} 87. Kc5 {[%clk 0:00:05.6]} 87...
Ka3 {[%clk 0:01:01.9]} 88. Kc4 {[%clk 0:00:04.9]} 88... Ka4 {[%clk 0:01:00.7]}
89. Qxa2# {[%clk 0:00:03.8]} 1-0

[Event "Live Chess"]
[Site "Chess.com"]
[Date "2024.06.02"]
[Round "-"]
[White "santhoshrlokesh"]
[Black "FlyingChessKestrel13"]
[Result "0-1"]
[WhiteElo "1473"]
[BlackElo "2065"]
[TimeControl "300"]
[EndTime "8:14:41 PDT"]
[Termination "FlyingChessKestrel13 won by resignation"]

1. d4 {[%clk 0:04:59.6]} 1... d5 {[%clk 0:04:57.5]} 2. Bf4 {[%clk 0:04:58.8]}
2... Nf6 {[%clk 0:04:56]} 3. e3 {[%clk 0:04:58.2]} 3... Bf5 {[%clk 0:04:54.7]}
4. Bd3 {[%clk 0:04:57.1]} 4... Bxd3 {[%clk 0:04:53]} 5. Qxd3 {[%clk 0:04:55.6]}
5... c6 {[%clk 0:04:52.7]} 6. Nf3 {[%clk 0:04:54.9]} 6... e6 {[%clk 0:04:51.9]}
7. Ne5 {[%clk 0:04:51.9]} 7... Bd6 {[%clk 0:04:51.3]} 8. Nc3 {[%clk 0:04:46.5]}
8... O-O {[%clk 0:04:50.2]} 9. O-O {[%clk 0:04:43.4]} 9... c5 {[%clk 0:04:48.2]}
10. dxc5 {[%clk 0:04:38.1]} 10... Bxc5 {[%clk 0:04:45.2]} 11. Ne2 {[%clk
0:04:26.9]} 11... Nc6 {[%clk 0:04:44.2]} 12. Ng3 {[%clk 0:04:21.2]} 12... Bd6
{[%clk 0:04:40.4]} 13. Nxc6 {[%clk 0:04:18.5]} 13... bxc6 {[%clk 0:04:39.1]} 14.
Bg5 {[%clk 0:04:13.7]} 14... h6 {[%clk 0:04:35.6]} 15. Bh4 {[%clk 0:04:07.8]}
15... g5 {[%clk 0:04:32.6]} 16. Bxg5 {[%clk 0:04:03.3]} 16... hxg5 {[%clk
0:04:31.7]} 17. f4 {[%clk 0:03:54.5]} 17... g4 {[%clk 0:04:25.3]} 18. f5 {[%clk
0:03:51.9]} 18... e5 {[%clk 0:04:24.5]} 19. e4 {[%clk 0:03:43.5]} 19... Qb6+
{[%clk 0:04:22.2]} 20. Kh1 {[%clk 0:03:41.5]} 20... Qd4 {[%clk 0:04:21.2]} 21.
Qe2 {[%clk 0:03:32.2]} 21... dxe4 {[%clk 0:04:14.5]} 22. Qxg4+ {[%clk
0:03:30.2]} 22... Nxg4 {[%clk 0:04:13.1]} 0-1

[Event "Live Chess"]
[Site "Chess.com"]
[Date "2024.06.02"]
[Round "-"]
[White "NAZRIZ1977"]
[Black "Rusty_Bridges"]
[Result "1-0"]
[WhiteElo "2076"]
[BlackElo "1465"]
[TimeControl "300"]
[EndTime "8:14:43 PDT"]
[Termination "NAZRIZ1977 won by resignation"]

1. d4 {[%clk 0:04:57.2]} 1... d5 {[%clk 0:04:58.8]} 2. c4 {[%clk 0:04:56.4]}
2... e5 {[%clk 0:04:57.9]} 3. dxe5 {[%clk 0:04:53.1]} 3... d4 {[%clk 0:04:57.8]}
4. Nf3 {[%clk 0:04:52.5]} 4... Nc6 {[%clk 0:04:53.1]} 5. e3 {[%clk 0:04:50.6]}
5... Bb4+ {[%clk 0:04:38.5]} 6. Ke2 {[%clk 0:04:49.6]} 6... d3+ {[%clk
0:03:42.1]} 7. Qxd3 {[%clk 0:04:46.1]} 7... Qxd3+ {[%clk 0:03:40.9]} 8. Kxd3
{[%clk 0:04:45.1]} 8... Nge7 {[%clk 0:03:34.6]} 9. a3 {[%clk 0:04:41.4]} 9...
Bf5+ {[%clk 0:03:23.3]} 10. e4 {[%clk 0:04:37.6]} 10... O-O-O+ {[%clk
0:03:20.8]} 11. Ke2 {[%clk 0:04:32.2]} 11... Bxe4 {[%clk 0:03:12.1]} 12. axb4
{[%clk 0:04:29.8]} 12... Bxf3+ {[%clk 0:02:58.3]} 13. gxf3 {[%clk 0:04:26.6]}
13... Nxe5 {[%clk 0:02:56.7]} 14. Bh3+ {[%clk 0:04:20.4]} 14... Kb8 {[%clk
0:02:52]} 15. Bf4 {[%clk 0:04:19.3]} 15... Nxc4 {[%clk 0:02:48.4]} 16. Nc3
{[%clk 0:04:13.5]} 16... Rhe8 {[%clk 0:02:39.8]} 17. Kf1 {[%clk 0:04:09.8]}
17... Nxb2 {[%clk 0:02:34.3]} 18. Nb5 {[%clk 0:04:08.3]} 18... Nd5 {[%clk
0:02:27.3]} 19. Bg3 {[%clk 0:04:02.5]} 19... Nc4 {[%clk 0:02:20]} 20. Nxa7
{[%clk 0:03:49.2]} 20... Nxb4 {[%clk 0:01:11.3]} 21. Nb5 {[%clk 0:03:41.6]}
21... Nd5 {[%clk 0:01:01.9]} 22. Kg2 {[%clk 0:03:30.2]} 22... b6 {[%clk
0:00:49.3]} 23. Rhd1 {[%clk 0:03:15.2]} 23... Kb7 {[%clk 0:00:45.5]} 24. Rxd5
{[%clk 0:03:08.7]} 24... Rxd5 {[%clk 0:00:42.2]} 25. Nxc7 {[%clk 0:03:07.7]}
25... Red8 {[%clk 0:00:29.1]} 26. Nxd5 {[%clk 0:03:05.5]} 26... Rxd5 {[%clk
0:00:28.7]} 27. f4 {[%clk 0:03:03]} 27... Nd2 {[%clk 0:00:26.2]} 28. Kh1 {[%clk
0:03:00.2]} 28... Nf3 {[%clk 0:00:23.8]} 29. Bg2 {[%clk 0:02:59.6]} 1-0

[Event "Live Chess"]
[Site "Chess.com"]
[Date "2024.06.02"]
[Round "-"]
[White "f4nomore"]
[Black "gmnorfolk"]
[Result "0-1"]
[WhiteElo "1284"]
[BlackElo "2125"]
[TimeControl "300"]
[EndTime "8:15:13 PDT"]
[Termination "gmnorfolk won by resignation"]

1. c4 {[%clk 0:04:56.6]} 1... e5 {[%clk 0:04:58.8]} 2. Nc3 {[%clk 0:04:55.2]}
2... Nf6 {[%clk 0:04:58]} 3. d3 {[%clk 0:04:54]} 3... Nc6 {[%clk 0:04:57.2]} 4.
Nf3 {[%clk 0:04:52.5]} 4... d5 {[%clk 0:04:54.7]} 5. cxd5 {[%clk 0:04:50.2]}
5... Nxd5 {[%clk 0:04:54]} 6. Bd2 {[%clk 0:04:48.2]} 6... Be7 {[%clk 0:04:50.2]}
7. e4 {[%clk 0:04:46.4]} 7... Nb6 {[%clk 0:04:40.9]} 8. Be2 {[%clk 0:04:45]}
8... O-O {[%clk 0:04:39]} 9. O-O {[%clk 0:04:42.6]} 9... Be6 {[%clk 0:04:37.1]}
10. a3 {[%clk 0:04:39.9]} 10... f6 {[%clk 0:04:34.2]} 11. b4 {[%clk 0:04:37.9]}
11... a5 {[%clk 0:04:32]} 12. b5 {[%clk 0:04:35]} 12... Nd4 {[%clk 0:04:31.2]}
13. Nxd4 {[%clk 0:04:30.4]} 13... exd4 {[%clk 0:04:30.1]} 14. Na2 {[%clk
0:04:24.4]} 14... Bxa3 {[%clk 0:04:26.7]} 15. Nc1 {[%clk 0:04:17.2]} 15... Bxc1
{[%clk 0:04:19.6]} 16. Qxc1 {[%clk 0:04:14.6]} 16... a4 {[%clk 0:04:18.2]} 17.
Bb4 {[%clk 0:04:10.3]} 17... Re8 {[%clk 0:04:15.9]} 18. Qd1 {[%clk 0:04:04.2]}
18... Bb3 {[%clk 0:04:14.1]} 19. Qd2 {[%clk 0:03:58.7]} 19... Qd7 {[%clk
0:04:11.5]} 20. h3 {[%clk 0:03:56.2]} 20... Qxb5 {[%clk 0:04:10.3]} 21. Ba3
{[%clk 0:03:48.4]} 21... c5 {[%clk 0:04:08.7]} 22. Rfb1 {[%clk 0:03:38.2]} 22...
Nd7 {[%clk 0:04:06.9]} 23. Bg4 {[%clk 0:03:31.8]} 23... Ne5 {[%clk 0:04:03.5]}
24. Be2 {[%clk 0:03:26.3]} 24... Rac8 {[%clk 0:03:58.6]} 25. Ra2 {[%clk
0:03:16.1]} 25... Qc6 {[%clk 0:03:45.5]} 26. Rab2 {[%clk 0:03:12.6]} 26... b5
{[%clk 0:03:42.2]} 27. Rc1 {[%clk 0:03:10.8]} 27... Qb6 {[%clk 0:03:28.9]} 28.
Rbb1 {[%clk 0:03:07.9]} 28... c4 {[%clk 0:03:25.4]} 29. dxc4 {[%clk 0:03:00.7]}
29... bxc4 {[%clk 0:03:24.2]} 30. f4 {[%clk 0:02:43.1]} 30... c3 {[%clk
0:03:23.1]} 31. Qe1 {[%clk 0:02:32.8]} 31... d3+ {[%clk 0:03:22]} 32. Kh2 {[%clk
0:02:24.2]} 32... dxe2 {[%clk 0:03:18.6]} 33. Qxe2 {[%clk 0:02:22.6]} 33... c2
{[%clk 0:03:15.6]} 34. Rb2 {[%clk 0:02:19.4]} 34... Nc4 {[%clk 0:03:09.4]} 35.
Rbxc2 {[%clk 0:02:14]} 35... Bxc2 {[%clk 0:03:04.9]} 36. Rxc2 {[%clk 0:02:10.3]}
36... Nxa3 {[%clk 0:03:03.7]} 37. Rxc8 {[%clk 0:02:07.9]} 37... Rxc8 {[%clk
0:03:02.6]} 38. Qd3 {[%clk 0:02:03.8]} 38... Nc4 {[%clk 0:02:59.9]} 39. Qd5+
{[%clk 0:02:00.6]} 39... Kh8 {[%clk 0:02:58.4]} 40. Qd7 {[%clk 0:01:55.4]} 40...
Qc7 {[%clk 0:02:56.7]} 41. Qg4 {[%clk 0:01:47.4]} 41... a3 {[%clk 0:02:53]} 42.
e5 {[%clk 0:01:42]} 42... fxe5 {[%clk 0:02:51.2]} 43. fxe5 {[%clk 0:01:39.6]}
43... Nxe5 {[%clk 0:02:50.1]} 44. Qa4 {[%clk 0:01:34]} 44... Nf3+ {[%clk
0:02:48.7]} 45. Kh1 {[%clk 0:01:30.7]} 45... Qc1+ {[%clk 0:02:48.2]} 0-1